Cogmind - Beta 16 @@@ ROGUE MODE // 2025.10.25 @ 01:40:13 Player: Zaros426 Result: Destroyed by H-77 Assassin with High-powered Shotgun Performance ------------- Evolutions (6) 3000 Regions Visited (12) 2400 Robots Destroyed (141) 705 Value Destroyed (3960) 3960 Prototype IDs (45) 900 Alien Tech Used (0) 0 Bonus (2166) 2166 TOTAL SCORE: 13131 Bonus ------- High Alert Combat Kills 117 Follower Combat Kills 167 Registered with UFD 300 Met Optimus in HQ 500 Met Warlord at Base 500 MAIN.C Attacked Warlord 500 Warlord Defense Kills 100 Friendly Fire -18 Cogmind --------- Core Integrity 0/1150 Matter 291/300 Energy 78/100 System Corruption 4% Temperature Cool (0) Movement Core (150) Ox2 Location -4/Upper Caves Parts ------- > --- POWER (2) -------- (None) > --- PROPULSION (8) --- Advanced VSS Leg > --- UTILITY (7) ------ Makeshift Terrain Scan Processor Advanced Transmission Jammer Graphene Brace Thermal Barrier (fused) System Shield > --- WEAPON (2) ------- Force Lance > --- INVENTORY (5) ---- Makeshift ECM Suite Advanced Trap Extractor (4/8 Fire) Heavy Plasma Cannon Improved Plasma Cutter Peak State ------------ > --- POWER ------------ Enhanced Fission Core Micro Fission Core > --- PROPULSION ------- Nuclear Pulse Array Flightbrick > --- UTILITY ---------- Weight Redist. System Enhanced Optical Array Experimental Phase Shifter Layered Light Armor Plating Thermal Barrier Advanced Shield Generator Makeshift Hacking Suite Advanced Hacking Suite System Mapper Advanced Trap Extractor > --- WEAPON ----------- Helical Railgun Makeshift Hammer > --- INVENTORY -------- Structural Scanner Seismic Detector Makeshift ECM Suite Advanced Plasma Cannon Vortex Trap [Rating: 137] Favorites ----------- Power Ion Engine Engine Ion Engine Power Core Enhanced Fission Core Reactor Cold Fusion Reactor Propulsion Spiked Treads Treads Spiked Treads Leg Advanced VSS Leg Wheel Armored Huge Wheel Hover Unit Linear Gravjet Flight Unit Flightbrick Utility Structural Scanner Device Structural Scanner Storage High-capacity Storage Unit Processor Enhanced Optical Array Hackware Advanced Hacking Suite Protection Hardened Light Armor Plating Weapon Beam Cannon Energy Gun EM Pulse Gun Energy Cannon Beam Cannon Ballistic Gun Subdweller Machine Gun Launcher Long-range Missile Launcher Impact Weapon Makeshift Hammer Slashing Weapon Makeshift Axe Piercing Weapon Force Lance Build | -11 -10 -10 -10 -7 -7 -5 -5 -5 -5 -4 -4 -4 ------- Run | Yrd Mat Min Sub Rec Scr Fac Upp Upp War Pro Fac Upp Slots Evolved 12 | . . . . . . 10 . . . . 2 . Power 1 | . . . . . . 1 . . . . . . Propulsion 6 | . . . . . . 4 . . . . 2 . Utility 5 | . . . . . . 5 . . . . . . Weapon . | . . . . . . . . . . . . . Parts Attached 136 | 7 22 . 16 4 2 28 2 4 16 1 32 2 Power 17 | 1 4 . 2 1 1 3 1 . 2 . 2 . Engine 11 | 1 4 . 2 1 1 1 . . . . 1 . Core 3 | . . . . . . 1 1 . 1 . . . Reactor 3 | . . . . . . 1 . . 1 . 1 . Propulsion 32 | 2 3 . 6 1 . 2 . . 3 . 15 . Treads 11 | 2 3 . 6 . . . . . . . . . Leg 2 | . . . . . . . . . 1 . 1 . Wheel 1 | . . . . 1 . . . . . . . . Hover 5 | . . . . . . . . . 1 . 4 . Flight 13 | . . . . . . 2 . . 1 . 10 . Utility 58 | 2 6 . 2 2 1 19 1 4 6 1 12 2 Device 31 | 1 1 . . . 1 12 . 2 4 . 9 1 Storage 5 | 1 2 . . 1 . . . . . . 1 . Processor 6 | . . . . . . 4 . . . 1 . 1 Hackware 6 | . . . . . . 1 . 2 1 . 2 . Protection 10 | . 3 . 2 1 . 2 1 . 1 . . . Artifact . | . . . . . . . . . . . . . Weapon 29 | 2 9 . 6 . . 4 . . 5 . 3 . Energy Gun 7 | 2 3 . . . . . . . 2 . . . Energy Cannon 9 | . 3 . 3 . . 2 . . . . 1 . Ballistic Gun 5 | . 1 . 3 . . . . . 1 . . . Ballistic Cannon . | . . . . . . . . . . . . . Launcher 3 | . 1 . . . . 1 . . 1 . . . Special Weapon . | . . . . . . . . . . . . . Impact Weapon 2 | . 1 . . . . . . . 1 . . . Slashing Weapon 2 | . . . . . . 1 . . . . 1 . Piercing Weapon 1 | . . . . . . . . . . . 1 . Special Melee Weapon . | . . . . . . . . . . . . . Unidentified Prototypes 24 | . 1 . . . . 3 1 . 13 . 6 . Parts Lost 34 | . 3 . . 2 . 3 . 1 . 2 23 . Power 4 | . . . . 1 . . . . . . 3 . Propulsion 13 | . . . . 1 . . . . . 1 11 . Utility 11 | . . . . . . 2 . 1 . . 8 . Weapon 6 | . 3 . . . . 1 . . . 1 1 . Highest Loss Streak 14 | . 2 . . 2 . 2 . 1 . 2 14 . To Critical Strikes . | . . . . . . . . . . . . . Average Backups 10 | 1 14 20 5 18 17 3 3 3 3 4 5 3 Power . | . . . . . . . . . . . . . Propulsion 2 | . 5 7 2 5 4 . . . . . . . Utility 4 | . 4 6 2 9 10 2 2 2 2 3 3 1 Weapon 2 | . 4 6 1 3 3 1 1 1 1 1 1 . Tool/Special . | . . . . . . . . . . . . . Unused Backups 37 | . 9 1 4 . 13 4 . . . . 3 3 Power . | . . . . . . . . . . . . . Propulsion 12 | . 5 1 2 . 4 . . . . . . . Utility 14 | . 2 . 1 . 6 2 . . . . 2 1 Weapon 10 | . 2 . 1 . 3 2 . . . . 1 1 Tool/Special 1 | . . . . . . . . . . . . 1 Average Slot Usage (%) 80 | . 99 100 84 67 62 63 79 79 78 72 74 33 Engine 9 | . 14 14 13 11 12 3 2 . . . 3 . Core 1 | . . . . . . 2 6 10 10 10 4 . Treads 14 | . 28 28 27 11 . . . . . . . . Wheel 2 | . . . . 6 12 . . . . . . . Flight 2 | . . . . . . 9 10 10 10 6 16 . Device 8 | . 4 . . . 8 27 35 25 23 23 19 14 Storage 6 | . 14 14 3 12 12 . . . . . 1 . Processor 1 | . . . . . . 7 5 5 5 5 1 3 Hackware 3 | . . . . . . 2 5 14 15 15 14 5 Protection 8 | . 9 14 13 12 3 3 5 5 5 5 1 . Energy Cannon 11 | . 19 27 9 12 12 3 . 3 2 . . . Ballistic Gun 4 | . . . 14 . . . . . . . . . Peak Build Rating 137 | 7 15 13 31 37 37 105 109 107 137 128 135 47 Average Rating 44 | 5 9 12 19 34 35 90 100 105 118 108 107 44 On Entrance 54 | . 7 13 13 29 37 36 104 101 106 133 107 20 Avg Prop Armor Cover (%) 10 | 30 . . . . . 27 . . . . 6 16 Naked Turns . | . . . . . . . . . . . . . Heaviest Build 107 | 13 56 56 61 107 107 45 45 45 45 42 58 9 Greatest Support 68 | 40 46 46 46 43 28 45 45 45 45 45 68 3 Greatest Overweight (x) 3 | 3 1 1 1 3 3 1 . . 1 1 1 2 Average Overweight (x) . | . . 1 . 2 2 . . . . . . 1 Largest Inventory Capacity 25 | 8 20 20 20 25 25 20 5 5 5 5 10 5 Average Capacity 12 | 7 16 20 8 22 23 5 5 5 5 5 6 5 Most Carried 25 | 3 20 20 20 25 25 20 5 5 5 5 10 5 Average Carried 12 | 1 14 19 8 22 21 4 5 5 4 4 6 3 Final Capacity 25 | 8 20 20 20 25 20 5 5 5 5 5 5 5 Final Carried 25 | 3 20 20 20 25 20 5 5 5 5 4 5 4 Class Distribution -------------------- 47% | Mutant 18% | Subdweller-Mutant 15% | Hacker-Mutant 9% | Commander-Mutant 5% | Infiltrator-Mutant Dominant Class ---------------- Mutant | -10/Materials Commander-Mutant | -10/Mines Subdweller-Mutant | -10/Subcaves Mutant | -7/Recycling Mutant | -7/Scraptown Mutant | -5/Factory Infiltrator-Mutant | -5/Upper Caves Hacker-Mutant | -5/Upper Caves Hacker-Mutant | -5/Warlord Hacker-Mutant | -4/Proximity Caves Hacker-Sprinter | -4/Factory Mutant | -4/Upper Caves Resources | -11 -10 -10 -10 -7 -7 -5 -5 -5 -5 -4 -4 -4 ----------- Run | Yrd Mat Min Sub Rec Scr Fac Upp Upp War Pro Fac Upp Matter Collected 3119 | 244 538 70 452 50 10 365 350 70 370 215 345 40 Remotely . | . . . . . . . . . . . . . Salvage Created 5567 | 171 845 246 739 986 . 593 646 245 45 8 1027 16 Parts 275 | 16 55 19 46 35 . 37 19 4 1 2 40 1 Haulers Intercepted 8 | . 2 . . . . 2 . . . . 4 . Recyclers Shooed 3 | 1 . . . 2 . . . . . . . . Parts Field Recycled . | . . . . . . . . . . . . . Retrieved Matter . | . . . . . . . . . . . . . Parts Self-Destructed 28 | . . . 12 . . . 11 2 . 3 . . Prevented 2 | . . . . . . . . 2 . . . . Parts Restored . | . . . . . . . . . . . . . Kills | -11 -10 -10 -10 -7 -7 -5 -5 -5 -5 -4 -4 -4 ------- Run | Yrd Mat Min Sub Rec Scr Fac Upp Upp War Pro Fac Upp Combat Hostiles Destroyed 78 | . 12 7 17 1 . 10 14 6 1 3 7 . Melee 6 | . . . . . . . . . . . 6 . Guns 6 | . 2 . 4 . . . . . . . . . Cannons 27 | . 5 3 12 1 . 2 . 4 . . . . AOE 35 | . 3 4 . . . 8 14 2 1 3 . . Classes Destroyed 16 | 2 6 . 2 1 . 2 1 1 . 1 . . Worker 11 | . 1 1 . . . 8 . . . . 1 . Builder 9 | . 3 1 . . . 2 . . . . 3 . Tunneler 8 | 4 1 . . . . 2 . . . . 1 . Hauler 8 | . 2 . . . . 2 . . . . 4 . Recycler 17 | 1 3 1 . 10 . . . . . . 2 . Minesweeper 1 | . . . . . . . 1 . . . . . Mechanic 1 | . . . . . . 1 . . . . . . Drone 2 | . . . . . . . . . . 2 . . Turret 1 | . . . 1 . . . . . . . . . Watcher 7 | . 3 . . . . 2 . . . . 2 . Swarmer 26 | . 3 3 . . . 6 5 2 . . 7 . Grunt 27 | . 9 4 . . . 3 8 2 1 . . . Duelist 1 | . . . . . . . . 1 . . . . Sentry 2 | . . . . 1 . . . 1 . . . . Programmer 3 | . . . . . . 1 1 . . 1 . . Subdweller 17 | . . . 17 . . . . . . . . . Decomposer 2 | . . . . . . . 1 . . . . 1 Best Kill Streak 13 | 5 8 4 3 3 . 13 6 2 1 1 6 . Combat Bots Only 6 | . 5 3 3 1 . 4 6 2 1 1 4 . Max Kills in Single Turn 4 | 1 3 2 1 1 . 4 4 2 1 1 1 1 Gunslinging . | . . . . . . . . . . . . . Exploded 4 | . 3 2 . . . 3 4 2 1 1 . . Melee 1 | . . . . . . . . . . . 1 . Uniques/NPCs Destroyed . | . . . . . . . . . . . . . Combat | -11 -10 -10 -10 -7 -7 -5 -5 -5 -5 -4 -4 -4 -------- Run | Yrd Mat Min Sub Rec Scr Fac Upp Upp War Pro Fac Upp Hostile Shots Fired 971 | . 44 25 67 135 . 134 44 45 21 61 391 4 Missed 468 | . 15 8 22 48 . 65 25 17 12 36 218 2 Hits 503 | . 29 17 45 87 . 69 19 28 9 25 173 2 Melee 15 | . . . . . . . . . . 1 14 . Projectile 488 | . 29 17 45 87 . 69 19 28 9 24 159 2 AOE 5 | . . . . . . . . . 3 . 2 . Critical Strikes 23 | . 2 1 . . . 2 . 1 . 3 14 . Actively Blocked 6 | . . . . . . . . . . . 6 . Part Disruptions 3 | . . . . . . . . 1 2 . . . Damage Taken 8206 | . 381 214 879 686 . 1159 321 338 318 352 3521 37 Core 1536 | . 22 . 63 100 . 45 43 90 . 17 1119 37 Absorbed by Shields 633 | . . . . . . 162 77 95 105 56 138 . Ignored by Resistances 120 | . . . . . . . . . 11 109 . . Regen/Repaired (Parts) 101 | . 57 . . . . . . . 44 . . . Core Remaining (%) 68 | 100 . . . . 26 . . . . 80 . . Volleys Fired 341 | 9 41 21 90 64 . 59 18 32 2 4 1 . Largest 2 | 2 2 2 2 1 . 1 1 1 1 1 1 . Hottest 160 | 80 120 120 160 40 . 98 43 98 45 43 98 . Shots Fired 490 | 18 79 39 174 64 . 59 18 32 2 4 1 . Gun 176 | 18 47 . 110 . . . . . 1 . . . Cannon 282 | . 29 36 64 64 . 57 . 31 . . 1 . Launcher 32 | . 3 3 . . . 2 18 1 1 4 . . Special . | . . . . . . . . . . . . . Kinetic 108 | . 2 . 106 . . . . . . . . . Thermal 282 | . 29 36 64 64 . 57 . 31 . . 1 . Explosive 32 | . 3 3 . . . 2 18 1 1 4 . . Electromagnetic 67 | 18 45 . 4 . . . . . . . . . Entropic 1 | . . . . . . . . . 1 . . . Robot Hit Streak 19 | 9 9 6 19 13 . 3 5 9 . . . . Robot Miss Streak 6 | 2 3 6 3 3 . 4 4 2 . 1 . . Penetration Max . | . . . . . . . . . . . . . Secondary Targets . | . . . . . . . . . . . . . Shots Hit Robots 264 | 11 53 15 79 22 . 16 17 20 . . 30 1 Core Hits 167 | 6 31 12 25 13 . 27 26 8 3 3 13 . Critical Kills 1 | . . . 1 . . . . . . . . . Critical Parts Destroyed 1 | . . . . . . . . . . . 1 . Critical Strikes 7 | . . . 1 . . 2 . . . . 4 . Meltdown 1 | . . . 1 . . . . . . . . . Smash 1 | . . . . . . . . . . . 1 . Sever 2 | . . . . . . 2 . . . . . . Impale 3 | . . . . . . . . . . . 3 . Melee Attacks 143 | . 27 . 2 . . 11 10 8 2 5 77 1 Impact 57 | . 27 . 2 . . . . . 2 5 21 . Slashing 55 | . . . . . . 11 10 8 . . 26 . Piercing 31 | . . . . . . . . . . . 30 1 Sneak Attacks 22 | . 2 . . . . 3 2 . . . 14 1 Combat Hostiles . | . . . . . . . . . . . . . Follow-up Attacks 3 | . . . . . . . . . . . 3 . Damage Inflicted 14296 | 181 1278 631 1670 1202 . 3066 2310 911 187 157 2601 102 Guns 1424 | 147 536 . 741 . . . . . . . . . Cannons 3649 | . 319 282 929 1202 . 298 . 619 . . . . Explosions 5358 | 34 305 349 . . . 2349 1763 214 187 157 . . Melee 3862 | . 118 . . . . 419 547 78 . . 2598 102 Ramming 3 | . . . . . . . . . . . 3 . Kinetic 690 | . 16 . 674 . . . . . . . . . Thermal 4869 | 34 404 443 929 1202 . 1238 . 619 . . . . Explosive 4138 | . 220 188 . . . 1409 1763 214 187 157 . . Electromagnetic 734 | 147 520 . 67 . . . . . . . . . Impact 403 | . 118 . . . . . . . . . 285 . Slashing 1869 | . . . . . . 419 547 78 . . 825 . Piercing 1590 | . . . . . . . . . . . 1488 102 Highest Corruption 4 | . . . . . . . . . . 1 4 4 Average Corruption 2 | . . . . . . . . . . 1 3 4 Corruption Purged . | . . . . . . . . . . . . . Corruption Blocked . | . . . . . . . . . . . . . Effects 14 | . . . . . . . . . . 4 3 7 Message Errors 3 | . . . . . . . . . . 2 1 . Matter Fused 1 | . . . . . . . . . . . . 1 Heat Flow Errors 1 | . . . . . . . . . . . . 1 Energy Discharges 3 | . . . . . . . . . . 1 . 2 Parts Fused 1 | . . . . . . . . . . . . 1 Data Loss (minor) 3 | . . . . . . . . . . . 1 2 Data Loss (major) 1 | . . . . . . . . . . 1 . . Alerts 1 | . . . . . . . . . . . 1 . Overload Shots . | . . . . . . . . . . . . . Overflow Damage 1360 | 4 24 14 . 80 . 290 298 54 . . 510 86 Projectiles 122 | . . 5 . 80 . 9 . 28 . . . . Explosions 370 | 4 . 9 . . . 242 89 26 . . . . Melee 868 | . 24 . . . . 39 209 . . . 510 86 Knockbacks 2 | . . . . . . . . . . . 2 . Impact 2 | . . . . . . . . . . . 2 . Kinetic . | . . . . . . . . . . . . . Secondary . | . . . . . . . . . . . . . Self-Inflicted Damage 202 | . . . . . . 167 35 . . . . . Shots 3 | . . . . . . 2 1 . . . . . Rammed . | . . . . . . . . . . . . . Targets Rammed 1 | . . . . . . . . . . . 1 . Kicked 1 | . . . . . . . . . . . 1 . Crushed . | . . . . . . . . . . . . . Highest Temperature 430 | 162 339 336 108 151 . 430 58 350 284 24 62 92 Average Temperature 82 | 82 73 147 20 52 . 130 27 122 54 9 6 49 Received Heat Transfer 1257 | . 252 99 138 228 . 90 78 45 22 48 257 . Effects 7 | . 1 1 . . . 2 . 3 . . . . Shutdowns 1 | . . . . . . 1 . . . . . . Energy Bleed 3 | . 1 1 . . . . . 1 . . . . Interference 3 | . . . . . . 1 . 2 . . . . Siege Activations . | . . . . . . . . . . . . . Martial Activations . | . . . . . . . . . . . . . Shielding Activations . | . . . . . . . . . . . . . Robots Disrupted . | . . . . . . . . . . . . . Combat Hostiles . | . . . . . . . . . . . . . Robots Corrupted 5 | . 2 . . . . . . . . . 3 . Combat Hostiles 3 | . 2 . . . . . . . . . 1 . Parts Fried 15 | . 9 . . . . . . 1 . . 5 . Impact Corruptions 11 | . 2 . . . . . . . . . 9 . Robots Melted 1 | . . . 1 . . . . . . . . . Combat Hostiles 1 | . . . 1 . . . . . . . . . Parts Melted 5 | . 1 . 4 . . . . . . . . . Heat Transferred 4903 | 50 766 792 1295 . . 1100 . 900 . . . . Parts Sabotaged . | . . . . . . . . . . . . . Parts Stolen . | . . . . . . . . . . . . . Parts Stripped . | . . . . . . . . . . . . . Power Chain Reactions 3 | 1 2 . . . . . . . . . . . Alert | -11 -10 -10 -10 -7 -7 -5 -5 -5 -5 -4 -4 -4 ------- Run | Yrd Mat Min Sub Rec Scr Fac Upp Upp War Pro Fac Upp Maximum Alert Level 4 | . 1 1 . . . 4 . . . . 2 . Low Security (%) 79 | 100 97 99 . 100 . 41 . . . . . . Level 1 13 | . 2 . . . . 43 . . . . 53 . Level 2 5 | . . . . . . . . . . . 46 . Level 3 . | . . . . . . 2 . . . . . . Level 4 1 | . . . . . . 11 . . . . . . Level 5 . | . . . . . . . . . . . . . High Security . | . . . . . . . . . . . . . Max Security . | . . . . . . . . . . . . . Peak Influence 1258 | 20 216 200 . 42 . 1258 . . . . 636 . Initial 300 | . . 31 . . . . . . . . 300 . Average 134 | 3 76 52 . 13 . 352 . . . . 399 . Influence Increases 5607 | 25 604 374 211 323 . 1637 350 284 50 225 1524 . Destroy 0b10 Robot/C 1300 | . 240 160 100 20 . 200 280 120 20 20 140 . Destroy 0b10 Robot/NC 340 | 25 65 15 . 60 . 85 15 . . 10 65 . Destroy Leader 228 | . 80 30 . . . 36 40 10 . . 32 . Allied During Kill 56 | . . 31 21 . . . . 4 . . . . Trap Triggered on 0b10 10 | . 10 . . . . . . . . . . . Successful Hack 157 | . 46 . . 6 . 44 . . . . 61 . Select Force Hacks 270 | . 60 . . 210 . . . . . . . . Disable Machine 690 | . 45 90 . . . 555 . . . . . . Destroy Structure 591 | . 28 48 . 27 . 432 . . . . 56 . Advance Influence 300 | . . . . . . . . . . . 300 . Partial Spotted 135 | . . . . . . 30 . . . . 105 . Lose Combat Pursuer 1530 | . 30 . 90 . . 255 15 150 30 195 765 . Influence Decreases 5439 | 25 524 454 211 314 9 385 702 587 645 227 1114 242 Entered New Map 1444 | . . 49 . . 9 . 464 171 597 2 . 152 Time Decay 3043 | 25 502 405 111 309 . 350 238 386 48 205 374 90 Search Patrol Dispatched 200 | . . . . . . . . . . . 200 . Lost Part 317 | . 22 . . 5 . 30 . 10 . 20 230 . Lost Ally 135 | . . . 100 . . 5 . 20 . . 10 . Purge Threat 300 | . . . . . . . . . . . 300 . Squads Dispatched 42 | . 3 . . . . 17 . . . . 22 . Investigation 19 | . 3 . . . . 5 . . . . 11 . Extermination 6 | . . . . . . 3 . . . . 3 . Reinforcement 14 | . . . . . . 6 . . . . 8 . Assault 3 | . . . . . . 3 . . . . . . Garrison . | . . . . . . . . . . . . . Intercept . | . . . . . . . . . . . . . Searches Triggered 2 | . . . . . . . . . . . 2 . Construction Impeded 2 | . . . . . . 1 . . . . 1 . Haulers Reinforced 4 | . . . . . . 1 . . . . 3 . Active Scanning Responses . | . . . . . . . . . . . . . Cargo Convoy Interrupts . | . . . . . . . . . . . . . Stealth | -11 -10 -10 -10 -7 -7 -5 -5 -5 -5 -4 -4 -4 --------- Run | Yrd Mat Min Sub Rec Scr Fac Upp Upp War Pro Fac Upp Distress Signals 9 | . 1 . . . . 1 . . 1 . 6 . Communications Jammed . | . . . . . . . . . . . . . Distress Signals . | . . . . . . . . . . . . . Times Spotted 322 | . 18 8 25 1 . 61 21 17 39 22 107 3 Peak Tracking Total 31 | . 5 3 3 1 . 8 5 3 11 7 31 . Tactical Retreats 55 | . 1 . 3 . . 13 3 6 3 5 21 . ECM-based Alert Blocks 47 | . . . . . . 17 6 . . . 24 . Traps | -11 -10 -10 -10 -7 -7 -5 -5 -5 -5 -4 -4 -4 ------- Run | Yrd Mat Min Sub Rec Scr Fac Upp Upp War Pro Fac Upp Traps Triggered 5 | . 1 . 1 . . 1 . . 1 . 1 . Indirectly . | . . . . . . . . . . . . . Trap Hack Attempts . | . . . . . . . . . . . . . Triggered . | . . . . . . . . . . . . . Disarmed . | . . . . . . . . . . . . . Reprogrammed . | . . . . . . . . . . . . . Reused 4 | . 1 . . . . . . . . 3 . . Traps Extracted 6 | . . . . . . . . . 6 . . . Installed 8 | . 1 . . . . . . . 2 5 . . Triggered 4 | . 1 . . . . . . . . 3 . . Most Traps Carried 10 | . 1 . . . 2 2 6 6 10 9 4 4 Machines | -11 -10 -10 -10 -7 -7 -5 -5 -5 -5 -4 -4 -4 ---------- Run | Yrd Mat Min Sub Rec Scr Fac Upp Upp War Pro Fac Upp Machines Disabled 49 | . 3 6 1 . . 37 . 1 1 . . . Max in Single Turn 16 | . 2 4 1 . . 16 . 1 1 . . . Garrison Access 4 | . . . . . . 2 . . . . 2 . Machines Repaired . | . . . . . . . . . . . . . Machines Dismantled . | . . . . . . . . . . . . . Machines Sabotaged . | . . . . . . . . . . . . . Overloaded Fab Kills . | . . . . . . . . . . . . . Hacking | -11 -10 -10 -10 -7 -7 -5 -5 -5 -5 -4 -4 -4 --------- Run | Yrd Mat Min Sub Rec Scr Fac Upp Upp War Pro Fac Upp Machines Accessed 79 | . 10 1 2 11 5 22 . 1 5 . 22 . Terminals 31 | . 7 1 . 4 . 11 . . . . 8 . Fabricators 4 | . . . . . . 2 . . . . 2 . Repair Stations 1 | . 1 . . . . . . . . . . . Recycling Units 21 | . 2 . . 7 . 5 . . . . 7 . Scanalyzers 5 | . . . . . . 2 . . . . 3 . Garrison Access 4 | . . . . . . 2 . . . . 2 . Total Hacks 189 | . 25 5 5 16 28 42 . 1 9 . 58 . Successful 134 | . 14 1 5 10 28 23 . 1 9 . 43 . Failed 53 | . 11 3 . 6 . 19 . . . . 14 . Catastrophic 9 | . 3 . . . . 5 . . . . 1 . Database Lockouts 2 | . . 1 . . . . . . . . 1 . Manual 67 | . 15 2 . 15 . 18 . . . . 17 . Terminals 84 | . 19 5 . 9 . 24 . . . . 27 . Fabricators 7 | . . . . . . 3 . . . . 4 . Repair Stations 4 | . 4 . . . . . . . . . . . Recycling Units 24 | . 2 . . 7 . 8 . . . . 7 . Scanalyzers 20 | . . . . . . 3 . . . . 17 . Garrison Access 7 | . . . . . . 4 . . . . 3 . Terminal Hacks 70 | . 4 1 5 1 28 8 . 1 9 . 13 . Record 36 | . . . 4 . 21 2 . . 7 . 2 . Part Schematic 1 | . . 1 . . . . . . . . . . Robot Analysis 10 | . 1 . . 1 6 . . . . . 2 . Prototype ID Bank 1 | . . . . . . 1 . . . . . . Open Door 3 | . . . . . . . . 1 2 . . . Branch Access Points 1 | . . . . . . . . . . . 1 . Machine Index 1 | . . . . . . . . . . . 1 . Terminal Index 1 | . . . . . . . . . . . 1 . Alert Level 1 | . . . . . . . . . . . 1 . Unreport Threat 2 | . . . . . . . . . . . 2 . Locate Traps 5 | . 3 . . . . 2 . . . . . . Recall Extermination 1 | . . . . . . 1 . . . . . . Recall Assault 1 | . . . . . . . . . . . 1 . Hauler Manifests 1 | . . . . . . 1 . . . . . . Zone Layout 3 | . . . . . . 1 . . . . 2 . Proto ID Catalog 2 | . . . 1 . 1 . . . . . . . Fabricator Hacks 2 | . . . . . . . . . . . 2 . Network Status 2 | . . . . . . . . . . . 2 . Repair Station Hacks 2 | . 2 . . . . . . . . . . . Scan Component 1 | . 1 . . . . . . . . . . . Repair 1 | . 1 . . . . . . . . . . . Recycling Unit Hacks . | . . . . . . . . . . . . . Scanalyzer 12 | . . . . . . 2 . . . . 10 . Insert Component 5 | . . . . . . . . . . . 5 . Analyze 3 | . . . . . . . . . . . 3 . Retrieve Study 4 | . . . . . . 2 . . . . 2 . Garrison Access Hacks 3 | . . . . . . 1 . . . . 2 . Seal Access 3 | . . . . . . 1 . . . . 2 . Unauthorized Hacks 45 | . 8 . . 9 . 12 . . . . 16 . Terminals 22 | . 6 . . 2 . 7 . . . . 7 . Assimilate 2 | . 1 . . . . . . . . . 1 . Botnet 3 | . . . . . . 2 . . . . 1 . Skim 17 | . 5 . . 2 . 5 . . . . 5 . Fabricators 2 | . . . . . . . . . . . 2 . Haulers 2 | . . . . . . . . . . . 2 . Repair Stations . | . . . . . . . . . . . . . Recycling Units 21 | . 2 . . 7 . 5 . . . . 7 . Tunnel 9 | . 2 . . 7 . . . . . . . . Fedlink 12 | . . . . . . 5 . . . . 7 . Scanalyzers . | . . . . . . . . . . . . . Garrison Access . | . . . . . . . . . . . . . Data Cores Recovered . | . . . . . . . . . . . . . Used . | . . . . . . . . . . . . . Hacking Detections 43 | . 7 1 . 4 . 17 . . . . 14 . Full Trace Events 4 | . . . . 1 . . . . . . 3 . Feedback Events . | . . . . . . . . . . . . . Feedback Blocked . | . . . . . . . . . . . . . Robot Schematics Acquired . | . . . . . . . . . . . . . Robots Built . | . . . . . . . . . . . . . Authchips . | . . . . . . . . . . . . . Time . | . . . . . . . . . . . . . Total Robot Build Rating . | . . . . . . . . . . . . . Part Schematics Acquired 4 | . . 1 . . . . . . . . 3 . Parts Built . | . . . . . . . . . . . . . Authchips . | . . . . . . . . . . . . . Time . | . . . . . . . . . . . . . Total Part Build Rating . | . . . . . . . . . . . . . Part Studies Acquired 4 | . . . . . . 2 . . . . 2 . Parts Repaired 1 | . 1 . . . . . . . . . . . Time 26 | . 26 . . . . . . . . . . . Parts Recycled . | . . . . . . . . . . . . . Recycled Matter . | . . . . . . . . . . . . . Retrieved Matter . | . . . . . . . . . . . . . Retrieved Components . | . . . . . . . . . . . . . Parts Scanalyzed 5 | . . . . . . . . . . . 5 . Part Schematics Acquired 3 | . . . . . . . . . . . 3 . Parts Damaged . | . . . . . . . . . . . . . Bothacking | -11 -10 -10 -10 -7 -7 -5 -5 -5 -5 -4 -4 -4 ------------ Run | Yrd Mat Min Sub Rec Scr Fac Upp Upp War Pro Fac Upp Used RIF Installer . | . . . . . . . . . . . . . Robots Hacked . | . . . . . . . . . . . . . Non-combat . | . . . . . . . . . . . . . Combat . | . . . . . . . . . . . . . Robot Hacks Applied . | . . . . . . . . . . . . . Relay Couplers Released 3 | . . . . . . 3 . . . . . . Machine Destruction 3 | . . . . . . 3 . . . . . . Fabnet Peak Effective % . | . . . . . . . . . . . . . Robots Rewired 1 | . . . . . . . . 1 . . . . Allies Hacked . | . . . . . . . . . . . . . Hacks Repelled . | . . . . . . . . . . . . . Allies | -11 -10 -10 -10 -7 -7 -5 -5 -5 -5 -4 -4 -4 -------- Run | Yrd Mat Min Sub Rec Scr Fac Upp Upp War Pro Fac Upp Total Allies 8 | . 1 5 . . . . . 1 . . 1 . Largest Group 6 | . 1 6 6 1 1 1 . 1 . . 1 . Highest-Rated Group 97 | . 10 97 97 10 10 10 . 85 . . 10 . Highest-Rated Ally 85 | . 10 31 31 10 10 10 . 85 . . 10 . Total Orders 6 | . . . 1 5 . . . . . . . . STAY 3 | . . . 1 2 . . . . . . . . ROAM 1 | . . . . 1 . . . . . . . . FOLLOW 2 | . . . . 2 . . . . . . . . Ally Attacks 89 | . . 26 54 . . . . 9 . . . . Total Damage 979 | . . 240 386 . . . . 353 . . . . Kills 8 | . . 1 5 . . . . 2 . . . . Allies Corrupted . | . . . . . . . . . . . . . Allies Melted 1 | . . . . . . . . . 1 . . . Intel | -11 -10 -10 -10 -7 -7 -5 -5 -5 -5 -4 -4 -4 ------- Run | Yrd Mat Min Sub Rec Scr Fac Upp Upp War Pro Fac Upp Active Infowar (turns) 7216 | 24 632 . . . 1805 960 501 902 870 682 838 2 Optics 4277 | . . . . . . 955 501 902 870 682 367 . Terrain 1234 | . . . . . . . . 822 412 . . . Structural 5732 | . . . . . 1805 782 491 902 396 615 741 . Seismic 4765 | 24 632 . . . . 850 491 902 402 647 817 . Triangulation 124 | . . . . . . 124 . . . . . . Jamming 468 | . . . . . . 82 291 93 . . . 2 ECM 349 | . . . . . . 76 141 1 . . 131 . Robot Analysis Total 10 | . 1 . . 1 6 . . . . . 2 . Derelict Logs Recovered 12 | . . 1 2 . 5 . 2 1 . 1 . . Drone Launches . | . . . . . . . . . . . . . Drone Recoveries . | . . . . . . . . . . . . . Exploration | -11 -10 -10 -10 -7 -7 -5 -5 -5 -5 -4 -4 -4 ------------- Run | Yrd Mat Min Sub Rec Scr Fac Upp Upp War Pro Fac Upp Turns Passed 17739 | 113 2214 1877 4882 1156 2528 960 501 902 870 682 869 185 Spaces Moved 14989 | 55 952 750 2488 558 1767 1640 1034 1568 1477 945 1637 118 Core 188 | 26 . . . . . . . . . . 44 118 Treads 4383 | 29 952 750 2488 164 . . . . . . . . Legs . | . . . . . . . . . . . . . Wheels 2161 | . . . . 394 1767 . . . . . . . Hover 12 | . . . . . . . . . 1 . 11 . Flight 8245 | . . . . . . 1640 1034 1568 1476 945 1582 . Fastest Speed 28 | 50 160 240 160 130 130 37 37 37 37 37 28 50 Average Speed 99 | 127 197 240 176 176 141 37 37 37 37 39 34 138 Slowest Speed 460 | 200 240 240 260 460 145 120 37 37 96 80 116 150 Overloaded Moves 1 | . . . . . . . . . 1 . . . Propulsion Burnouts . | . . . . . . . . . . . . . Robots Hopped 41 | . . . . . . 8 2 7 2 5 17 . Potential Cave-ins 2 | . . . . . . 2 . . . . . . Cave-ins Triggered . | . . . . . . . . . . . . . Exploration Rate (%) 76 | 5 99 100 98 95 92 58 97 97 97 97 46 13 Regions Visited 12 Branch Regions 9 Pre-discovered Areas 22 | . 5 1 3 7 2 2 . 1 . 1 . . Known Exits Taken 5 | . . 1 . 1 . 1 . . . 1 1 . Unknown Exits Taken 7 | 1 1 . 1 . 1 . 1 1 1 . . . Scrap Searched 23 | . . 1 9 . 2 . 3 4 . 3 . 1 Spaces Dug 114 | . 12 . 7 13 . 22 2 8 2 20 28 . Terrain Destroyed 693 | 5 26 48 13 25 . 220 223 19 12 74 28 . Melee 53 | . 12 . . . . 2 2 4 2 4 27 . Projectile 88 | . . . 13 25 . 38 . 10 1 . 1 . AOE 552 | 5 14 48 . . . 180 221 5 9 70 . . Terrain Rammed . | . . . . . . . . . . . . . Walls Destroyed . | . . . . . . . . . . . . . Machines Disabled . | . . . . . . . . . . . . . Actions | -11 -10 -10 -10 -7 -7 -5 -5 -5 -5 -4 -4 -4 --------- Run | Yrd Mat Min Sub Rec Scr Fac Upp Upp War Pro Fac Upp Total 17150 | 77 1172 788 2815 677 1803 1898 1116 1840 1789 1234 1803 138 Wait 1207 | 4 57 14 142 39 . 128 46 229 236 266 33 13 Move 14909 | 54 951 749 2487 557 1766 1625 1029 1556 1473 935 1609 118 Hop 28 | . . . . . . 6 2 4 1 4 11 . Pick Up 106 | 3 37 1 25 7 15 3 . . 3 . 10 2 Fast Attach 111 | 7 4 . 8 3 1 18 4 4 30 1 30 1 Attach 26 | . 2 . 2 1 . 10 . . 1 1 6 3 Detach 6 | . . . . . . 1 . . . 1 4 . Swap 75 | . 24 2 12 1 2 6 3 2 6 10 7 . Drop 168 | . 28 1 30 4 19 18 4 3 33 2 26 . Fire 341 | 9 41 21 90 64 . 59 18 32 2 4 1 . Melee 132 | . 27 . 2 . . 11 10 8 2 5 66 1 Ram . | . . . . . . . . . . . . . Kick . | . . . . . . . . . . . . . Crush . | . . . . . . . . . . . . . Escape Stasis 13 | . . . . . . 13 . . . . . . Rewire 3 | . . . . 1 . . . 2 . . . . Trap 8 | . 1 . . . . . . . 2 5 . . Miscellaneous 17 | . . . 17 . . . . . . . . . Route ------- -11/Scrapyard -10/Materials (discovered 5 exits: *Mat x3 / *Min / *Sub) -10/Mines (discovered 4 exits: *Mat x2 / [*Exi] / *Sub) -10/Subcaves (discovered 3 exits: *Mat x2 / *Rec) -7/Recycling (discovered 2 exits: *Fac / *Scr) -7/Scraptown (discovered 2 exits: *Fac x2) -5/Factory (discovered 6 exits: *Fac x4 / *Upp x2) -5/Upper Caves -5/Upper Caves (discovered 2 exits: *Fac / *War) -5/Warlord -4/Proximity Caves -4/Factory (discovered 5 exits: Res x3 / *Upp x2) -4/Upper Caves History --------- Turn | Location | Event 2 | -11/Scrapyard | Discovered new exit (range 16) 114 | -11/Scrapyard | Entered Materials 311 | -10/Materials | Build established: Mutant 591 | -10/Materials | Discovered new exit (range 9) 609 | -10/Materials | Discovered new exit (range 8) 775 | -10/Materials | Repaired Lgt. Armor Plating 839 | -10/Materials | Discovered new exit (range 15) 952 | -10/Materials | Learned location of Recycling (-7) 998 | -10/Materials | Learned location of 1 exit from Recycling 1024 | -10/Materials | Discovered new exit (range 5) 1035 | -10/Materials | Learned Storage emergency access door positions 1055 | -10/Materials | Discovered new exit (range 6) 1080 | -10/Materials | Learned location of 2 exits from Mines 1102 | -10/Materials | Learned location of 2 exits from Subcaves 1130 | -10/Materials | Learned 2 Storage zone layouts 1214 | -10/Materials | Derelicts attacked the area 2328 | -10/Materials | Entered Mines 2328 | -10/Mines | Accompanied by 1 ally 2329 | -10/Mines | Identified exit to Subcaves 2329 | -10/Mines | Identified exit to Materials 2512 | -10/Mines | Deemed a non-threat by the Exiles lab entrance 2512 | -10/Mines | Discovered new exit (range 5) 2604 | -10/Mines | Assisted by bots powering up and referring to "LRC-V3" 2698 | -10/Mines | Central database locked down 2894 | -10/Mines | Build established: Commander-Mutant 3255 | -10/Mines | Discovered exit to Materials (range 10) 4205 | -10/Mines | Entered Subcaves 4205 | -10/Subcaves | Accompanied by 6 allies 4206 | -10/Subcaves | Identified exit to Materials 4210 | -10/Subcaves | Led the pair of lost Derelicts to an unsafe place 4215 | -10/Subcaves | Learned location of Zion (-7) 4272 | -10/Subcaves | Shifting Twisted Machinery released Flamer 4320 | -10/Subcaves | Shifting Twisted Machinery released Sub. Laser 4477 | -10/Subcaves | Shifting Twisted Machinery released Flamer 4483 | -10/Subcaves | Discovered new exit (range 11) 4544 | -10/Subcaves | Lost 4 allies 4674 | -10/Subcaves | Build established: Mutant 4885 | -10/Subcaves | A Subdweller sparked back to life 4885 | -10/Subcaves | A Subdweller sparked back to life 4885 | -10/Subcaves | A Subdweller sparked back to life 4912 | -10/Subcaves | Found Prototype Flight Unit 4940 | -10/Subcaves | Ambushed by Subdwellers from Twisted Machinery 5213 | -10/Subcaves | Build established: Subdweller-Mutant 5267 | -10/Subcaves | Disturbed a concealed Subdweller 5754 | -10/Subcaves | Met a Zionite searching for "candidates" 5868 | -10/Subcaves | Disturbed a concealed Subdweller 6304 | -10/Subcaves | Visited Clippyterm 6309 | -10/Subcaves | Learned 40 Factory zone layouts 6828 | -10/Subcaves | A swath of the cavern ceiling suddenly collapsed 8162 | -10/Subcaves | Shifting Twisted Machinery released Flamer 8245 | -10/Subcaves | Visited 4L-MR0's lab 8250 | -10/Subcaves | Identified Flightbrick 8264 | -10/Subcaves | Found Powered Cannon 8265 | -10/Subcaves | Attached Powered Cannon, gained temporary slot: Power 8567 | -10/Subcaves | Build established: Mutant 9087 | -10/Subcaves | Entered Recycling 9087 | -7/Recycling | Accompanied by 1 ally 9088 | -7/Recycling | Identified exit to Scraptown 9116 | -7/Recycling | Core integrity fell below 50% 9724 | -7/Recycling | Discovered new exit (range 12) 9772 | -7/Recycling | Scanned before Scraplab entrance 10220 | -7/Recycling | Entered Scraplab 10243 | -7/Recycling | Entered Scraptown 10243 | -7/Scraptown | Accompanied by 1 ally 10454 | -7/Scraptown | Discovered new exit (range 13) 10516 | -7/Scraptown | Scanned Subdweller tech in exchange for log data 10522 | -7/Scraptown | Learned Research trap positions 10525 | -7/Scraptown | Learned location of Warlord (-5) 10526 | -7/Scraptown | Learned Factory terminal intel 10612 | -7/Scraptown | Visited Spacefarers 10713 | -7/Scraptown | Visited TADAMA 10837 | -7/Scraptown | Heard Great Nut preacher, LISTEN AND RECITE! 10979 | -7/Scraptown | Visited Symbiants 11029 | -7/Scraptown | Visited SPCMW 11087 | -7/Scraptown | Visited The Evicted 11112 | -7/Scraptown | Visited Shadow of the Wyrm 11144 | -7/Scraptown | Visited Cyclists 11186 | -7/Scraptown | Visited UFD Registry 11186 | -7/Scraptown | Registered with UFD as "Boltcycle" 11214 | -7/Scraptown | Entered Cyclist Reading Room 11295 | -7/Scraptown | Visited Abandonware Association 11335 | -7/Scraptown | Visited Observation Area 11412 | -7/Scraptown | Delivered Scrap Shield to a Scientist 11553 | -7/Scraptown | Visited Junk Repository 11592 | -7/Scraptown | Visited Research Penetration Think Tank 11622 | -7/Scraptown | Visited Supply Room 11638 | -7/Scraptown | Visited Science Guys 11827 | -7/Scraptown | Visited Botcube Research 11953 | -7/Scraptown | Learned abandonware demo "HACKBUD.EXE" 11953 | -7/Scraptown | Learned abandonware demo "SHUTEYE.EXE" 11985 | -7/Scraptown | Visited Analyses Database 12696 | -7/Scraptown | Met Optimus 12696 | -7/Scraptown | Accepted into 0bPrime 12766 | -7/Scraptown | Discovered new exit (range 3) 12771 | -7/Scraptown | Entered Factory 12771 | -5/Factory | Accompanied by 1 ally 12771 | -5/Factory | Evolved 10 slots: Power x1, Propulsion x4, Utility x5 12772 | -5/Factory | Identified exit to Factory 12772 | -5/Factory | Identified exit to Upper Caves 12773 | -5/Factory | Loaded intel: 26 terminal locations 12773 | -5/Factory | Attached Flightbrick, gained temporary slots: Utility x3 12817 | -5/Factory | Loaded intel: 8 recycling unit locations 12847 | -5/Factory | Learned location of Protoforge (-3) 12900 | -5/Factory | Discovered exit to Upper Caves (range 8) 13018 | -5/Factory | Spotted B-75 Beast 13036 | -5/Factory | Discovered exit to Factory (range 19) 13270 | -5/Factory | Learned 12 Research zone layouts 13345 | -5/Factory | Learned Testing trap positions 13409 | -5/Factory | Learned location of 1 exit from Proximity Caves 13554 | -5/Factory | Learned location of Upper Caves (-4) 13567 | -5/Factory | Build established: Infiltrator-Mutant 13616 | -5/Factory | Learned location of 2 exits from Factory 13671 | -5/Factory | First assault squad dispatched 13731 | -5/Factory | Entered Upper Caves 13733 | -5/Upper Caves | UFD Scientist delivered a prototype 13734 | -5/Upper Caves | Found Prototype Protection 13734 | -5/Upper Caves | Identified Enh. Scrap Shield 13793 | -5/Upper Caves | Learned Factory interactive machine intel 13973 | -5/Upper Caves | Learned location of 1 exit from Factory 14227 | -5/Upper Caves | Discovered new exit (range 6) 14232 | -5/Upper Caves | Entered another Upper Caves area 14233 | -5/Upper Caves | Encountered a Warlord checkpoint 14270 | -5/Upper Caves | Discovered exit to Factory (range 18) 14323 | -5/Upper Caves | Attracted the attention of an 0b10 checkpoint 14379 | -5/Upper Caves | Spotted B-75 Beast 14463 | -5/Upper Caves | Rewired B-75 Beast 14531 | -5/Upper Caves | Discovered new exit (range 19) 14551 | -5/Upper Caves | Attacked by a delusional Derelict stockpiling parts 14580 | -5/Upper Caves | Build established: Hacker-Mutant 15134 | -5/Upper Caves | Entered Warlord 15157 | -5/Warlord | Discovered new exit (range 8) 15291 | -5/Warlord | Found Prototype Device 15291 | -5/Warlord | Identified Minesniffer Drone Bay 15325 | -5/Warlord | Warlord's base attacked by MAIN.C 15383 | -5/Warlord | Found Prototype Launcher 15383 | -5/Warlord | Identified Vortex Catalyst Activator 15385 | -5/Warlord | Found Prototype Energy Gun 15385 | -5/Warlord | Identified Vortex Rail 15387 | -5/Warlord | Found Vortex Rail 15447 | -5/Warlord | Rebuked by Warlord 15521 | -5/Warlord | Found Prototype Device 15521 | -5/Warlord | Identified Exp. Phase Shifter 15535 | -5/Warlord | Found Prototype Hackware 15535 | -5/Warlord | Identified System Mapper 15542 | -5/Warlord | Found Prototype Device 15542 | -5/Warlord | Identified Thermal Barrier 15551 | -5/Warlord | Found Prototype Reactor 15551 | -5/Warlord | Identified Vortex Chain Reactor 15675 | -5/Warlord | Warlord forces counterattacked 15743 | -5/Warlord | Spotted Striker 15855 | -5/Warlord | Spotted B-86 Titan 15857 | -5/Warlord | Spotted Executioner 15935 | -5/Warlord | Warned about trapping base interior 15940 | -5/Warlord | Attacked by Warlord forces 15951 | -5/Warlord | Lost 13 allies 16000 | -5/Warlord | Warlord base infiltrated, sounded retreat 16004 | -5/Warlord | Entered Proximity Caves 16007 | -4/Proximity Caves | Spotter reported a threat 16007 | -4/Proximity Caves | Spotter reported a threat 16020 | -4/Proximity Caves | Spotted B-86 Titan 16686 | -4/Proximity Caves | Entered Factory 16686 | -4/Factory | Evolved 2 slots: Propulsion x2 16687 | -4/Factory | Identified exit to Research 16688 | -4/Factory | Identified exit to Upper Caves 16689 | -4/Factory | Loaded intel: 54 interactive machine locations 16703 | -4/Factory | Loaded intel: 8 recycling unit locations 16933 | -4/Factory | Lost 3 parts (1p2n) 17186 | -4/Factory | Search patrols dispatched 17224 | -4/Factory | Central database locked down 17274 | -4/Factory | Lost 3 parts (3u) 17356 | -4/Factory | Build established: Hacker-Sprinter 17436 | -4/Factory | Search patrols dispatched 17527 | -4/Factory | Core integrity fell below 50% 17538 | -4/Factory | Core integrity fell below 20% 17555 | -4/Factory | Entered Upper Caves 17580 | -4/Upper Caves | Lost 14 parts (1p8n4u1w) 17740 | -4/Upper Caves | Destroyed by H-77 Assassin with High-powered Shotgun Last Messages --------------- 17581_ Acquired 16 matter. 17589_ System corrupted: Component data lost. 17593_ Searching scrap... 17593_ Found Mak. ECM Suite. 17593_ Found Mak. Terrain Scan Processor. 17593_ Found Hvy. Plasma Cannon. 17593_ Found 58 Matter. 17594_ Acquired 14 matter. 17596_ Acquired Mak. Terrain Scan Processor. 17599_ Acquired Mak. ECM Suite. 17602_ Acquired Hvy. Plasma Cannon. 17603_ Acquired 10 matter. 17616_ System corrupted: Heat flow error (+135). 17639_ System corrupted: Energy discharge (-24). 17676_ System corrupted: Matter fused (-9). 17704_ System corrupted: Thermal Barrier fused. 17721_ System corrupted: Component data lost. 17736_ System corrupted: Energy discharge (-39). 17740_ Penetrated by Slug. 17740_ Slug penetrates Wall. Map ----- +----------------------------------------------------+ | | | | | | | | | | | | | | | ?????????????????????????????????????????????????? | | ?????????????????????????????????????????????????? | | ?????????????????????????????????????????????????? | | ?????????????????????????????????????????????????? | | ?????????????????????????????????????????????????? | | ?????????????????????????????????????????????????? | | ?????????????????????????????????????????????????? | | ?????????????????????????????????????????????????? | | ?????????????????????????????????????????????????? | | ?????????????????????????????????????????????????? | | ?????????????????????????????????????????????????? | | ?????????????????????????????????????????????????? | | ???????????????????????#####?????????????????????? | | ???????????????????????#hph#?????????????????????? | | ???????????????????????# #?????????#########???? | | ???????????????????????# #???###??## ##??? | | ??????????????????###### #??## ### ##?? | | ??????????????????# ##?# ## #?? | | ??????????????????????# @ #?# ##? | | ??????????????????????# #?# #? | | ??????????????????????# #?## ### #? | | ??????????????????????# #??## #?####### ##? | | ??????????????????????# #???## #???????###?? | | ??????????????????????# #????# #??#####????? | | ??????????????????????## ##???# ##?# ###??? | | ???????????????????????## ##?## #?# ##?? | | ????????????????????????## #?# ##?# ##? | | ?????????????????????????# ### #### #? | | ?????????????????????????# #? | | ????????????????########?# ! #? | | ????????????????# ### ### #### ##? | | ????????????????# ?####?# ##??## ##?? | | ?????????????????# ####### ##????# ###??? | | ???????????????????# ## ##?????# #??? | | ????????????????????# ##?????# #??? | | ????????????????????## ##?###### #??? | | ?????????????????????### ### #?# #??? | | ???????????????????????# ### ###% #??? | | ???????????????????????# #?## ### ## #??? | | ??????????????????????# ??#####?# # #??? | | ????????????????????? ????????# ###? | | ???????????????????? ????????# ### ## | | ??????????????????? ????????####?## # | +----------------------------------------------------+ Best States ------------- Heat Dissipation 43 Energy Generation 32 Energy Capacity 515 Matter Stores 300 Matter Capacity 300 Sight Range 22 Terrain Scan Range 20 Terrain Scan Density 210 ECM Strength 2 Jamming Range 14 Additional Mass Support 9 Corruption Containment 8 Corruption Block 9 Armor Coverage 800 Resistance: TH 50 Phase Shifting 20 Evasion (%) 94 Core Analysis 6 Recoil Reduction 2 Offensive Hacking 55 Defensive Hacking 10 Trap Extractor Capacity 8 Item Schematics ----------------- Com. Wheel | -10/Mines | Hacked Mak. ECM Suite | -4/Factory | Scanalyzed Antimatter Cannon | -4/Factory | Scanalyzed Graphene Brace | -4/Factory | Scanalyzed Robot Schematics ------------------ None Fabricated ------------ Nothing Repaired ---------- Lgt. Armor Plating | 36% | -10/Materials Studied --------- Nuclear Pulse Array | -5/Factory | Hacked Lgt. Ion Engine | -5/Factory | Hacked Force Lance | -4/Factory | Hacked Imp. Plasma Cutter | -4/Factory | Hacked Alien Tech Used ----------------- None Achievements -------------- Hunted Infodabbler Part-time Excavator Challenges ------------ None Game ------ Seed CatalystDecoyChip Manual? 0 Play Time 02:58:58 Cumulative 21.5 hours Start 2025.10.24 @ 18:43:46 End 2025.10.25 @ 01:40:13 Sessions 7 Manual Loads 0 Difficulty Rogue Special Mode None Game No. 11 Rogue 11 Adventurer 0 Explorer 0 Win Type - Total 0 Types 0/0/0/0/0/0/0/0/0/0 Lore% 42 Gallery% 34 Achievement% 36 Wizard Run 0 Options --------- Layout 0 ASCII 0 Keyboard 0 Movement Mouse Keybinds 0 Fullscreen 1 Font 24/Smallcaps Map View 183x50 Zoom Use 0% Tactical HUD 1 Map Filters NONE Filters NONE Steam 1 RUN: bf70f90b-744e-407d-aebb-fdf612120c13